Cogmind - Beta 11.1 @@@ ROGUE MODE // 2022.04.26 @ 09:19:26 Player: ktur Result: Destroyed by S-43 Plague with Heavy Machine Gun Performance ------------- Evolutions (7) 3500 Regions Visited (21) 4200 Robots Destroyed (126) 630 Value Destroyed (2955) 2955 Prototype IDs (243) 4860 Alien Tech Used (0) 0 Bonus (10703) 10703 TOTAL SCORE: 26848 Bonus ------- High Alert Combat Kills 43 Follower Combat Kills 560 Entered DSFs 500 Aligned with FarCom 300 Met Data Miner 300 Used Data Conduit 3000 Found Hidden Lab 3000 Decrypted A0 Command 3000 Cogmind --------- Core Integrity 0/1300 Matter 148/300 Energy 100/100 System Corruption 13% Temperature Cool (0) Movement Core (50) Location -3/Research Parts ------- > --- POWER (4) -------- (None) > --- PROPULSION (8) --- (None) > --- UTILITY (7) ------ (None) > --- WEAPON (2) ------- (None) > --- INVENTORY (5) ---- Transdimensional Reconstructor Core Regenerator Integrated Mediator Warp Cannon Guided Remote Datajack Peak State ------------ > --- POWER ------------ (None) > --- PROPULSION ------- Improved Surge Thruster Nuclear Pulse Array > --- UTILITY ---------- Experimental Signal Interpreter Experimental Signal Interpreter 0b10 Alert Chip Advanced Cloaking Device Medium Regenerative Plating Deep Network Scanner System Shield > --- WEAPON ----------- Guided Remote Datajack Heavy Pick > --- INVENTORY -------- Transdimensional Reconstructor Core Regenerator Integrated Mediator Warp Cannon Tiamat Missile Launcher [Rating: 88] Favorites ----------- Power Improved Ion Engine Engine Improved Ion Engine Power Core Light Nuclear Core Reactor Light Antimatter Reactor Propulsion Improved Treads Treads Improved Treads Hover Unit Cooled Airjet Flight Unit Improved Flight Unit Utility Large Storage Unit Device Advanced Terrain Scanner Storage Large Storage Unit Processor Advanced Targeting Computer Hackware Hacking Suite Protection Light Armor Plating Weapon Minigun Energy Gun Medium Laser Energy Cannon Particle Cannon Ballistic Gun Minigun Launcher Tiamat Missile Launcher Special Weapon Guided Remote Datajack Slashing Weapon Great Axe Piercing Weapon Heavy Pick Special Melee Weapon Datajack Build | -11 -10 -10 -9 -9 -9 -8 -8 -7 -7 -6 -6 -6 -6 -6 -6 -5 -5 -4 -4 -4 -3 ------- Run | Scr Mat Min Mat Min Exi Min Mat Fac DSF Fac Was Fac Low Low Dat Pro Fac Fac Arm Lab Res Slots Evolved 14 | . . . 2 . . . 2 2 . 2 . . . . . . 2 2 . . 2 Power 3 | . . . . . . . . . . 1 . . . . . . 1 . . . 1 Propulsion 6 | . . . 1 . . . 1 . . 1 . . . . . . 1 2 . . . Utility 5 | . . . 1 . . . 1 2 . . . . . . . . . . . . 1 Weapon . | . . . . . . . . . . . . . . . . . . . . . . Parts Attached 146 | 6 12 3 28 4 2 1 10 20 . 11 4 6 . . 1 2 8 9 9 6 4 Power 18 | 1 1 1 3 1 . . 1 1 . 2 . 1 . . . . 1 4 1 . . Engine 9 | 1 1 1 1 1 . . 1 . . . . 1 . . . . . 2 . . . Core 8 | . . . 2 . . . . 1 . 2 . . . . . . 1 2 . . . Reactor 1 | . . . . . . . . . . . . . . . . . . . 1 . . Propulsion 44 | 2 2 . 11 . . . 5 9 . 3 . 3 . . 1 1 1 1 5 . . Treads 19 | 2 2 . 10 . . . 5 . . . . . . . . . . . . . . Leg . | . . . . . . . . . . . . . . . . . . . . . . Wheel . | . . . . . . . . . . . . . . . . . . . . . . Hover 3 | . . . . . . . . 2 . 1 . . . . . . . . . . . Flight 22 | . . . 1 . . . . 7 . 2 . 3 . . 1 1 1 1 5 . . Utility 50 | 1 4 . 7 1 . . 3 8 . 5 4 1 . . . 1 4 3 1 4 3 Device 16 | . 1 . . . . . . 1 . 3 3 . . . . . 3 1 1 2 1 Storage 5 | 1 1 . 1 . . . . 1 . . . 1 . . . . . . . . . Processor 8 | . 1 . 2 . . . . 1 . . . . . . . 1 . 1 . . 2 Hackware 7 | . . . . . . . . 4 . 1 . . . . . . 1 . . 1 . Protection 14 | . 1 . 4 1 . . 3 1 . 1 1 . . . . . . 1 . 1 . Artifact . | . . . . . . . . . . . . . . . . . . . . . . Weapon 34 | 2 5 2 7 2 2 1 1 2 . 1 . 1 . . . . 2 1 2 2 1 Energy Gun 3 | 2 1 . . . . . . . . . . . . . . . . . . . . Energy Cannon 3 | . 1 . 1 . . . . . . . . . . . . . . . . 1 . Ballistic Gun 14 | . 3 1 5 1 2 1 1 . . . . . . . . . . . . . . Ballistic Cannon . | . . . . . . . . . . . . . . . . . . . . . . Launcher 8 | . . 1 1 1 . . . . . 1 . . . . . . 2 1 1 . . Special Weapon 1 | . . . . . . . . . . . . . . . . . . . . 1 . Impact Weapon . | . . . . . . . . . . . . . . . . . . . . . . Slashing Weapon 1 | . . . . . . . . 1 . . . . . . . . . . . . . Piercing Weapon 2 | . . . . . . . . . . . . . . . . . . . 1 . 1 Special Melee Weapon 2 | . . . . . . . . 1 . . . 1 . . . . . . . . . Unidentified Prototypes 10 | . . . 1 . . . . 1 . 2 2 . . . . . . . . 4 . Parts Lost 31 | . 1 1 1 1 . . . 1 2 . . . . 1 1 2 1 1 10 . 8 Power 2 | . . 1 . . . . . . . . . . . . . . . 1 . . . Propulsion 13 | . . . . . . . . . . . . . . . 1 1 . . 9 . 2 Utility 14 | . 1 . 1 1 . . . 1 1 . . . . 1 . 1 1 . 1 . 5 Weapon 2 | . . . . . . . . . 1 . . . . . . . . . . . 1 Highest Loss Streak 4 | . 1 1 1 1 . . . 1 2 . . . . 1 1 2 1 1 4 . 4 To Critical Strikes . | . . . . . . . . . . . . . . . . . . . . . . Average Slot Usage (%) 88 | . 96 100 99 93 100 99 97 92 67 70 73 77 80 77 73 77 69 66 61 40 39 Engine 7 | . 14 14 3 11 11 11 9 . . . . 4 6 6 6 6 5 . . . . Core 2 | . . . 7 . . . . 6 . 6 6 . . . . . 3 9 5 . . Treads 21 | . 27 28 32 33 33 33 36 . . . . . . . . . . . . . . Flight 7 | . . . . . . . . 28 15 20 20 24 26 26 26 26 27 31 24 10 5 Device 1 | . 1 . . . . . . 1 . 6 6 6 6 6 6 5 2 . 2 4 3 Storage 9 | . 14 14 11 11 11 11 9 . 7 6 6 6 6 6 6 6 5 5 3 . . Processor 9 | . 6 14 11 11 11 11 9 5 7 6 6 6 6 6 6 11 6 7 10 10 12 Hackware 4 | . . . . . . . . 24 21 17 20 20 20 17 13 13 9 5 5 7 5 Protection 5 | . 2 . 10 5 11 11 15 7 . . . . . . . . . . 2 1 2 Energy Gun 1 | . 12 . . . . . . . . . . . . . . . . . . . . Energy Cannon 2 | . 2 14 2 . . . . . . . . . . . . . . . . . . Ballistic Gun 12 | . 12 13 18 22 22 21 18 . . . . . . . . . . . . . . Slashing Weapon 1 | . . . . . . . . 6 7 6 6 6 6 6 6 6 5 5 1 . . Naked Turns 21 | . . . . . . . . . . . . . . . . . . . . . 21 Heaviest Build 53 | 12 33 33 41 40 36 36 40 25 25 31 30 30 28 28 28 28 53 37 38 17 17 Greatest Support 92 | 40 40 40 69 69 69 69 92 26 26 31 31 31 28 28 28 29 34 39 48 17 17 Greatest Overweight (x) 3 | 1 . . 1 . . . . 1 . . . 1 . . . . 1 1 . . 3 Average Overweight (x) . | . . . . . . . . . . . . . . . . . . . . . . Largest Inventory Capacity 15 | 8 15 15 15 15 15 15 15 15 15 15 15 15 15 15 15 15 15 15 15 5 5 Average Capacity 13 | 7 14 15 15 15 15 15 15 5 15 15 15 15 15 15 15 15 15 15 11 5 5 Most Carried 15 | 6 15 15 15 15 15 15 15 15 14 15 15 15 15 15 15 15 15 15 15 5 5 Average Carried 13 | 3 13 14 14 15 14 14 14 5 12 14 15 14 15 15 14 14 12 13 10 4 5 Final Capacity 15 | 8 15 15 15 15 15 15 15 15 15 15 15 15 15 15 15 15 15 15 5 5 5 Final Carried 15 | 6 15 15 15 15 15 15 15 10 14 15 15 15 15 15 14 14 14 13 5 5 5 Class Distribution -------------------- 69% | Mutant 12% | Hacker-Sprinter 6% | Hacker-Mutant 5% | Hacker-Scout 3% | Sprinter Dominant Class ---------------- Mutant | -10/Materials Mutant | -10/Mines Mutant | -9/Materials Mutant | -9/Mines Mutant | -9/Exiles Mutant | -8/Mines Mutant | -8/Materials Hacker-Sprinter | -7/Factory Hacker-Mutant | -7/DSF Hacker-Scout | -6/Factory Hacker-Scout | -6/Waste Hacker-Scout | -6/Factory Hacker-Sprinter | -6/Lower Caves Hacker-Sprinter | -6/Lower Caves Hacker-Sprinter | -6/Data Miner Hacker-Sprinter | -5/Proximity Caves Hacker-Sprinter | -5/Factory Sprinter | -4/Factory Scavenger-Sprinter | -4/Armory Sprinter | -4/Lab Hacker-Mutant | -3/Research Resources | -11 -10 -10 -9 -9 -9 -8 -8 -7 -7 -6 -6 -6 -6 -6 -6 -5 -5 -4 -4 -4 -3 ----------- Run | Scr Mat Min Mat Min Exi Min Mat Fac DSF Fac Was Fac Low Low Dat Pro Fac Fac Arm Lab Res Matter Collected 2702 | 240 209 128 791 265 . 81 195 . 60 130 . 276 . . . 20 103 178 12 . 14 Remotely . | . . . . . . . . . . . . . . . . . . . . . . Salvage Created 4218 | . 624 189 1582 395 . 98 232 . . 169 . 455 . . . . 212 235 13 . 14 Parts 259 | . 39 15 113 23 . 7 9 . . 6 . 17 . . . . 7 19 2 . 2 Haulers Intercepted 9 | . 2 . 6 . . . . . . . . 1 . . . . . . . . . Recyclers Shooed 7 | . 2 . 2 . . . . . . 2 . 1 . . . . . . . . . Parts Field Recycled . | . . . . . . . . . . . . . . . . . . . . . . Retrieved Matter . | . . . . . . . . . . . . . . . . . . . . . . Parts Self-Destructed . | . . . . . . . . . . . . . . . . . . . . . . Prevented . | . . . . . . . . . . . . . . . . . . . . . . Kills | -11 -10 -10 -9 -9 -9 -8 -8 -7 -7 -6 -6 -6 -6 -6 -6 -5 -5 -4 -4 -4 -3 ------- Run | Scr Mat Min Mat Min Exi Min Mat Fac DSF Fac Was Fac Low Low Dat Pro Fac Fac Arm Lab Res Combat Hostiles Destroyed 87 | . 14 9 31 13 . 4 3 . . . . . . . . . 7 5 1 . . Guns 57 | . 12 1 27 10 . 4 3 . . . . . . . . . . . . . . Cannons 9 | . 2 5 2 . . . . . . . . . . . . . . . . . . AOE 21 | . . 3 2 3 . . . . . . . . . . . . 7 5 1 . . Classes Destroyed 13 | . 4 1 5 . . 1 1 . . . . . . . . . . . 1 . . Worker 10 | . . . 2 1 . . . . . 1 . 3 . . . . . 2 . . 1 Builder 5 | . . 1 1 . . . . . . . . . . . . . 1 2 . . . Tunneler 2 | . . . 1 . . 1 . . . . . . . . . . . . . . . Hauler 9 | . 2 . 6 . . . . . . . . 1 . . . . . . . . . Recycler 5 | . . . . . . . 1 . . 1 . 2 . . . . . 1 . . . Operator 6 | . 2 . 4 . . . . . . . . . . . . . . . . . . Watcher 2 | . . . 1 . . . . . . . . 1 . . . . . . . . . Swarmer 33 | . 3 6 8 7 . 3 . . . . . . . . . . 1 5 . . . Cutter 1 | . . . . . . . . . . . . . . . . . . . 1 . . Grunt 42 | . 11 3 14 6 . . 2 . . . . . . . . . 6 . . . . Duelist 1 | . . . 1 . . . . . . . . . . . . . . . . . . Sentry 9 | . . . 8 . . . 1 . . . . . . . . . . . . . . Hunter 1 | . . . . . . 1 . . . . . . . . . . . . . . . Best Kill Streak 10 | . 4 3 6 5 . 3 2 . . 1 . 3 . . . . 6 10 1 . 1 Combat Bots Only 6 | . 3 3 4 5 . 3 2 . . . . . . . . . 6 5 1 . . Max Kills in Single Turn 5 | . 1 2 2 3 . 1 1 . . 1 . 1 . . . . 2 5 1 . 1 Gunslinging . | . . . . . . . . . . . . . . . . . . . . . . Exploded 4 | . . 2 1 3 . . . . . . . . . . . . 2 4 1 . . Melee . | . . . . . . . . . . . . . . . . . . . . . . Uniques/NPCs Destroyed . | . . . . . . . . . . . . . . . . . . . . . . Combat | -11 -10 -10 -9 -9 -9 -8 -8 -7 -7 -6 -6 -6 -6 -6 -6 -5 -5 -4 -4 -4 -3 -------- Run | Scr Mat Min Mat Min Exi Min Mat Fac DSF Fac Was Fac Low Low Dat Pro Fac Fac Arm Lab Res Damage Taken 6399 | . 648 457 575 366 . 123 368 . 381 . . 31 96 60 46 181 195 180 734 . 1958 Core 2081 | . 111 94 67 49 . 28 15 . 110 . . 31 38 22 6 92 . 45 70 . 1303 Absorbed by Shields 45 | . . . . . . . . . 45 . . . . . . . . . . . . Regen/Repaired (Parts) 842 | . 206 . . . . . . . . . . 636 . . . . . . . . . Core Remaining (%) 78 | 100 . 18 . . . 64 97 . 84 . . . . . . 77 100 . . 90 . Volleys Fired 239 | . 69 29 77 28 . 7 19 . . . . . . . . . 6 3 1 . . Largest 2 | . 2 2 2 2 . 2 2 . . . . . . . . . 1 1 1 . . Hottest 100 | . 100 88 91 50 . 50 53 . . . . . . . . . 46 46 46 . . Shots Fired 448 | . 138 47 146 55 . 14 38 . . . . . . . . . 6 3 1 . . Gun 394 | . 132 27 129 54 . 14 38 . . . . . . . . . . . . . . Cannon 38 | . 6 18 14 . . . . . . . . . . . . . . . . . . Launcher 16 | . . 2 3 1 . . . . . . . . . . . . 6 3 1 . . Special . | . . . . . . . . . . . . . . . . . . . . . . Kinetic 318 | . 56 27 129 54 . 14 38 . . . . . . . . . . . . . . Thermal 114 | . 82 18 14 . . . . . . . . . . . . . . . . . . Explosive 16 | . . 2 3 1 . . . . . . . . . . . . 6 3 1 . . Electromagnetic . | . . . . . . . . . . . . . . . . . . . . . . Robot Hit Streak 22 | . 9 8 18 22 . 4 9 . . . . . . . . . 2 4 5 . . Robot Miss Streak 3 | . 3 3 2 2 . 1 2 . . . . . . . . . 1 . . . . Penetration Max . | . . . . . . . . . . . . . . . . . . . . . . Secondary Targets 7 | . 1 . 1 4 . . 1 . . . . . . . . . . . . . . Max Gunslinging Chain 1 | . 1 . 1 1 . . 1 . . . . . . . . . . . . . . Shots Hit Robots 321 | . 92 26 102 40 . 9 28 . . 7 . 9 . . 1 . 3 2 1 . 1 Core Hits 174 | . 34 10 58 18 . 8 6 . . 3 . 5 . . . . 17 12 1 . 2 Critical Kills 3 | . . . 2 1 . . . . . . . . . . . . . . . . . Critical Parts Destroyed . | . . . . . . . . . . . . . . . . . . . . . . Critical Strikes 5 | . 2 . 2 1 . . . . . . . . . . . . . . . . . Burn 2 | . 2 . . . . . . . . . . . . . . . . . . . . Destroy 3 | . . . 2 1 . . . . . . . . . . . . . . . . . Melee Attacks 166 | . . . . . . . . 17 8 15 . 14 . 3 1 14 14 24 17 18 21 Impact . | . . . . . . . . . . . . . . . . . . . . . . Slashing 117 | . . . . . . . . 16 8 15 . 14 . 3 1 14 14 24 8 . . Piercing 48 | . . . . . . . . . . . . . . . . . . . 9 18 21 Sneak Attacks 12 | . . . . . . . . . . 4 . 6 . . 1 . . . . . 1 Combat Hostiles . | . . . . . . . . . . . . . . . . . . . . . . Follow-up Attacks . | . . . . . . . . . . . . . . . . . . . . . . Damage Inflicted 8849 | . 1100 681 2218 901 . 152 467 . . 445 . 587 . . 95 . 1236 769 67 . 131 Guns 3965 | . 970 161 1503 728 . 136 467 . . . . . . . . . . . . . . Cannons 645 | . 104 283 258 . . . . . . . . . . . . . . . . . . Explosions 2892 | . . 232 441 147 . . . . . . . . . . . . 1236 769 67 . . Melee 1209 | . . . . . . . . . . 445 . 587 . . 95 . . . . . 82 Ramming 138 | . 26 5 16 26 . 16 . . . . . . . . . . . . . . 49 Kinetic 3311 | . 316 161 1503 728 . 136 467 . . . . . . . . . . . . . . Thermal 1299 | . 758 283 258 . . . . . . . . . . . . . . . . . . Explosive 2892 | . . 232 441 147 . . . . . . . . . . . . 1236 769 67 . . Electromagnetic . | . . . . . . . . . . . . . . . . . . . . . . Impact . | . . . . . . . . . . . . . . . . . . . . . . Slashing 1127 | . . . . . . . . . . 445 . 587 . . 95 . . . . . . Piercing 82 | . . . . . . . . . . . . . . . . . . . . . 82 Highest Corruption 13 | . . . . . . . . . 3 . . . . . . . . . . . 13 Average Corruption 4 | . . . . . . . . . 3 . . . . . . . . . . . 4 Corruption Purged . | . . . . . . . . . . . . . . . . . . . . . . Corruption Blocked . | . . . . . . . . . . . . . . . . . . . . . . Effects 3 | . . . . . . . . . 1 . . . . . . . . . . . 2 Message Errors 1 | . . . . . . . . . . . . . . . . . . . . . 1 Matter Fused 2 | . . . . . . . . . 1 . . . . . . . . . . . 1 Overload Shots . | . . . . . . . . . . . . . . . . . . . . . . Overflow Damage 504 | . . 37 37 9 . . . . . 121 . 165 . . . . 37 98 . . . Projectiles 6 | . . 6 . . . . . . . . . . . . . . . . . . . Explosions 212 | . . 31 37 9 . . . . . . . . . . . . 37 98 . . . Melee 286 | . . . . . . . . . . 121 . 165 . . . . . . . . . Knockbacks 3 | . 1 . . 2 . . . . . . . . . . . . . . . . . Impact 3 | . 1 . . 2 . . . . . . . . . . . . . . . . . Kinetic . | . . . . . . . . . . . . . . . . . . . . . . Secondary . | . . . . . . . . . . . . . . . . . . . . . . Self-Inflicted Damage 80 | . . . 31 . . . . . . . . . . . . . . 28 . . 21 Shots 2 | . . . 1 . . . . . . . . . . . . . . 1 . . . Rammed 33 | . 5 1 2 4 . 4 . . . . . . . . . . . . . . 17 Targets Rammed 36 | . 5 2 2 5 . 5 . . . . . . . . . . . . . . 17 Kicked . | . . . . . . . . . . . . . . . . . . . . . . Crushed 3 | . . 1 . 1 . 1 . . . . . . . . . . . . . . . Highest Temperature 460 | . 460 291 219 126 . 24 75 . . . . . . . . . 49 202 379 . . Average Temperature 75 | . 119 127 42 33 . 10 23 . . . . . . . . . 15 45 96 . . Received Heat Transfer 1353 | . 354 165 210 171 . . 198 . . . . . 45 . . . 54 36 36 . 84 Effects 6 | . 2 . 2 . . . . . . . . . . . . . . 1 1 . . Shutdowns 2 | . 1 . . . . . . . . . . . . . . . . . 1 . . Interference 3 | . . . 2 . . . . . . . . . . . . . . 1 . . . Damage (minor) 1 | . 1 . . . . . . . . . . . . . . . . . . . . Siege Activations . | . . . . . . . . . . . . . . . . . . . . . . Robots Corrupted . | . . . . . . . . . . . . . . . . . . . . . . Combat Hostiles . | . . . . . . . . . . . . . . . . . . . . . . Parts Fried . | . . . . . . . . . . . . . . . . . . . . . . Impact Corruptions . | . . . . . . . . . . . . . . . . . . . . . . Robots Melted . | . . . . . . . . . . . . . . . . . . . . . . Combat Hostiles . | . . . . . . . . . . . . . . . . . . . . . . Parts Melted 3 | . 3 . . . . . . . . . . . . . . . . . . . . Heat Transferred 3182 | . 2257 481 444 . . . . . . . . . . . . . . . . . . Parts Sabotaged . | . . . . . . . . . . . . . . . . . . . . . . Parts Stolen . | . . . . . . . . . . . . . . . . . . . . . . Parts Stripped . | . . . . . . . . . . . . . . . . . . . . . . Power Chain Reactions . | . . . . . . . . . . . . . . . . . . . . . . Missiles Intercepted . | . . . . . . . . . . . . . . . . . . . . . . Alert | -11 -10 -10 -9 -9 -9 -8 -8 -7 -7 -6 -6 -6 -6 -6 -6 -5 -5 -4 -4 -4 -3 ------- Run | Scr Mat Min Mat Min Exi Min Mat Fac DSF Fac Was Fac Low Low Dat Pro Fac Fac Arm Lab Res Peak Influence 561 | . 208 286 561 291 . 90 135 27 12 28 45 70 . . . . 404 517 452 . 250 Initial 252 | . . 43 22 122 . . 35 . . 12 9 17 . . . . . 197 252 . . Average 125 | . 63 125 248 161 . 23 81 7 3 11 31 42 . . . . 191 323 333 . 114 Maximum Alert Level 2 | . 1 1 2 1 . . . . . . . . . . . . 2 2 2 . 1 Low Security (%) 70 | 100 98 78 30 45 . 100 100 100 100 100 100 100 . . . . 61 17 . . 69 Level 1 23 | . 1 21 53 54 . . . . . . . . . . . . 13 38 71 . 30 Level 2 5 | . . . 16 . . . . . . . . . . . . . 25 43 28 . . Level 3 . | . . . . . . . . . . . . . . . . . . . . . . Level 4 . | . . . . . . . . . . . . . . . . . . . . . . Level 5 . | . . . . . . . . . . . . . . . . . . . . . . High Security . | . . . . . . . . . . . . . . . . . . . . . . Max Security . | . . . . . . . . . . . . . . . . . . . . . . Squads Dispatched 29 | . 3 . 4 . . . 1 2 2 . . 2 . . . . 5 . 5 . 5 Investigation 8 | . 1 . . . . . . 2 . . . 1 . . . . 2 . . . 2 Extermination 2 | . . . . . . . . . . . . . . . . . 1 . . . 1 Reinforcement 19 | . 2 . 4 . . . 1 . 2 . . 1 . . . . 2 . 5 . 2 Assault . | . . . . . . . . . . . . . . . . . . . . . . Garrison . | . . . . . . . . . . . . . . . . . . . . . . Intercept . | . . . . . . . . . . . . . . . . . . . . . . Searches Triggered . | . . . . . . . . . . . . . . . . . . . . . . Construction Impeded 1 | . . . . . . . . . . . . . . . . . 1 . . . . Haulers Reinforced 2 | . . . . . . . . . . . . 1 . . . . 1 . . . . Active Scanning Responses . | . . . . . . . . . . . . . . . . . . . . . . Cargo Convoy Interrupts . | . . . . . . . . . . . . . . . . . . . . . . Stealth | -11 -10 -10 -9 -9 -9 -8 -8 -7 -7 -6 -6 -6 -6 -6 -6 -5 -5 -4 -4 -4 -3 --------- Run | Scr Mat Min Mat Min Exi Min Mat Fac DSF Fac Was Fac Low Low Dat Pro Fac Fac Arm Lab Res Distress Signals 10 | . 3 . 5 . . . . . . . . . . . . . . . 1 . 1 Communications Jammed . | . . . . . . . . . . . . . . . . . . . . . . Distress Signals . | . . . . . . . . . . . . . . . . . . . . . . Times Spotted 277 | . 32 9 46 14 . 5 4 . 13 2 6 2 13 9 4 2 23 19 45 . 29 Peak Tracking Total 27 | . 4 3 5 5 . 3 2 . 8 1 6 3 8 9 4 2 7 15 27 . 16 Tactical Retreats 21 | . 1 . 2 1 . 1 . . 1 . . . 2 . . . 1 1 5 . 6 Traps | -11 -10 -10 -9 -9 -9 -8 -8 -7 -7 -6 -6 -6 -6 -6 -6 -5 -5 -4 -4 -4 -3 ------- Run | Scr Mat Min Mat Min Exi Min Mat Fac DSF Fac Was Fac Low Low Dat Pro Fac Fac Arm Lab Res Traps Triggered 9 | . 3 . 1 . . . . . 1 1 . 1 . . . . . . . . 2 Indirectly . | . . . . . . . . . . . . . . . . . . . . . . Trap Hack Attempts . | . . . . . . . . . . . . . . . . . . . . . . Triggered . | . . . . . . . . . . . . . . . . . . . . . . Disarmed . | . . . . . . . . . . . . . . . . . . . . . . Reprogrammed . | . . . . . . . . . . . . . . . . . . . . . . Reused . | . . . . . . . . . . . . . . . . . . . . . . Traps Extracted . | . . . . . . . . . . . . . . . . . . . . . . Installed . | . . . . . . . . . . . . . . . . . . . . . . Triggered 1 | . . . . . . . . . . . . . . 1 . . . . . . . Machines | -11 -10 -10 -9 -9 -9 -8 -8 -7 -7 -6 -6 -6 -6 -6 -6 -5 -5 -4 -4 -4 -3 ---------- Run | Scr Mat Min Mat Min Exi Min Mat Fac DSF Fac Was Fac Low Low Dat Pro Fac Fac Arm Lab Res Machines Disabled 13 | . . 1 2 . . . . . . . . . . . . . 2 1 3 4 . Max in Single Turn 2 | . . 1 2 . . . . . . . . . . . . . 1 1 1 1 . Garrison Access 2 | . . . . . . . . 1 . 1 . . . . . . . . . . . Machines Sabotaged . | . . . . . . . . . . . . . . . . . . . . . . Garrisons Compromised . | . . . . . . . . . . . . . . . . . . . . . . Overloaded Fab Kills . | . . . . . . . . . . . . . . . . . . . . . . Hacking | -11 -10 -10 -9 -9 -9 -8 -8 -7 -7 -6 -6 -6 -6 -6 -6 -5 -5 -4 -4 -4 -3 --------- Run | Scr Mat Min Mat Min Exi Min Mat Fac DSF Fac Was Fac Low Low Dat Pro Fac Fac Arm Lab Res Machines Accessed 47 | . 9 1 9 1 2 . . 6 . 4 . 3 . . 4 . 3 1 . 1 3 Terminals 26 | . 6 1 6 1 . . . 4 . 2 . 1 . . . . 1 1 . . 3 Fabricators 3 | . . . . . . . . 1 . . . . . . . . 2 . . . . Repair Stations 3 | . 1 . . . . . . . . . . 2 . . . . . . . . . Recycling Units 5 | . 2 . 2 . . . . . . 1 . . . . . . . . . . . Scanalyzers 1 | . . . 1 . . . . . . . . . . . . . . . . . . Garrison Access 2 | . . . . . . . . 1 . 1 . . . . . . . . . . . Total Hacks 151 | . 29 4 27 4 2 . . 12 . 9 . 13 . . 31 . 11 1 . 1 7 Successful 96 | . 12 2 16 1 2 . . 10 . 5 . 8 . . 31 . 7 1 . 1 . Failed 54 | . 16 2 11 3 . . . 2 . 4 . 5 . . . . 4 . . . 7 Catastrophic 12 | . 2 . 6 . . . . . . . . 1 . . . . . . . . 3 Database Lockouts 1 | . 1 . . . . . . . . . . . . . . . . . . . . Manual 60 | . 20 4 16 4 1 . . 3 . 4 . 1 . . . . . . . . 7 Terminals 77 | . 23 4 20 4 . . . 8 . 7 . 1 . . . . 2 1 . . 7 Fabricators 12 | . . . . . . . . 3 . . . . . . . . 9 . . . . Repair Stations 16 | . 4 . . . . . . . . . . 12 . . . . . . . . . Recycling Units 6 | . 2 . 3 . . . . . . 1 . . . . . . . . . . . Scanalyzers 4 | . . . 4 . . . . . . . . . . . . . . . . . . Garrison Access 2 | . . . . . . . . 1 . 1 . . . . . . . . . . . Terminal Hacks 57 | . 4 2 7 1 2 . . 4 . 3 . . . . 31 . 1 1 . 1 . Record 13 | . . . . . 1 . . . . . . . . . 11 . . . . 1 . Part Schematic 14 | . . . . . . . . 1 . 1 . . . . 12 . . . . . . Robot Schematic 5 | . . . . . . . . . . . . . . . 5 . . . . . . Robot Analysis 3 | . 1 1 1 . . . . . . . . . . . . . . . . . . Prototype ID Bank 5 | . 2 . . . . . . . . . . . . . 3 . . . . . . Open DSF 1 | . . . . . . . . 1 . . . . . . . . . . . . . Level Access Points 1 | . . . . . . . . . . . . . . . . . 1 . . . . Branch Access Points 1 | . . . . . . . . . . . . . . . . . . 1 . . . Terminal Index 1 | . . . . . . . . . . 1 . . . . . . . . . . . Alert Level 3 | . . 1 2 . . . . . . . . . . . . . . . . . . Unreport Threat 5 | . . . 3 1 . . . . . 1 . . . . . . . . . . . Locate Traps 2 | . . . 1 . . . . 1 . . . . . . . . . . . . . Recall Investigation 1 | . . . . . . . . 1 . . . . . . . . . . . . . Hauler Manifests 1 | . 1 . . . . . . . . . . . . . . . . . . . . EX-Prototype ID Bank 1 | . . . . . 1 . . . . . . . . . . . . . . . . Fabricator Hacks 9 | . . . . . . . . 3 . . . . . . . . 6 . . . . Network Status 1 | . . . . . . . . 1 . . . . . . . . . . . . . Load Schematic 4 | . . . . . . . . 1 . . . . . . . . 3 . . . . Build 4 | . . . . . . . . 1 . . . . . . . . 3 . . . . Repair Station Hacks 12 | . 4 . . . . . . . . . . 8 . . . . . . . . . Scan Component 7 | . 2 . . . . . . . . . . 5 . . . . . . . . . Repair 5 | . 2 . . . . . . . . . . 3 . . . . . . . . . Recycling Unit Hacks 5 | . 2 . 2 . . . . . . 1 . . . . . . . . . . . Retrieve Components 5 | . 2 . 2 . . . . . . 1 . . . . . . . . . . . Scanalyzer 4 | . . . 4 . . . . . . . . . . . . . . . . . . Insert Component 2 | . . . 2 . . . . . . . . . . . . . . . . . . Analyze 2 | . . . 2 . . . . . . . . . . . . . . . . . . Garrison Access Hacks 2 | . . . . . . . . 1 . 1 . . . . . . . . . . . Seal Access 2 | . . . . . . . . 1 . 1 . . . . . . . . . . . Unauthorized Hacks 7 | . 2 . 3 . . . . 2 . . . . . . . . . . . . . Terminals 7 | . 2 . 3 . . . . 2 . . . . . . . . . . . . . Botnet 4 | . 1 . 1 . . . . 2 . . . . . . . . . . . . . Operators 3 | . 1 . 2 . . . . . . . . . . . . . . . . . . Fabricators . | . . . . . . . . . . . . . . . . . . . . . . Repair Stations . | . . . . . . . . . . . . . . . . . . . . . . Recycling Units . | . . . . . . . . . . . . . . . . . . . . . . Scanalyzers . | . . . . . . . . . . . . . . . . . . . . . . Garrison Access . | . . . . . . . . . . . . . . . . . . . . . . Data Cores Recovered . | . . . . . . . . . . . . . . . . . . . . . . Used . | . . . . . . . . . . . . . . . . . . . . . . Hacking Detections 33 | . 8 1 7 1 . . . 4 . 2 . 3 . . . . 3 1 . . 3 Full Trace Events 7 | . . . . . . . . 2 . . . 1 . . . . 2 . . . 2 Feedback Events 2 | . . . . . . . . 1 . . . . . . . . . . . . 1 Hackware Fried 2 | . . . . . . . . 1 . . . . . . . . . . . . 1 Feedback Blocked . | . . . . . . . . . . . . . . . . . . . . . . Robot Schematics Acquired 5 | . . . . . . . . . . . . . . . 5 . . . . . . Robots Built . | . . . . . . . . . . . . . . . . . . . . . . Authchips . | . . . . . . . . . . . . . . . . . . . . . . Time . | . . . . . . . . . . . . . . . . . . . . . . Total Robot Build Rating . | . . . . . . . . . . . . . . . . . . . . . . Part Schematics Acquired 15 | . . . 1 . . . . 1 . 1 . . . . 12 . . . . . . Parts Built 5 | . . . . . . . . 2 . . . . . . . . 3 . . . . Authchips 1 | . . . . . . . . . . . . . . . . . 1 . . . . Time 443 | . . . . . . . . 106 . . . . . . . . 337 . . . . Total Part Build Rating 30 | . . . . . . . . 12 . . . . . . . . 18 . . . . Parts Repaired 5 | . 2 . . . . . . . . . . 3 . . . . . . . . . Time 294 | . 52 . . . . . . . . . . 242 . . . . . . . . . Parts Recycled . | . . . . . . . . . . . . . . . . . . . . . . Recycled Matter . | . . . . . . . . . . . . . . . . . . . . . . Retrieved Matter . | . . . . . . . . . . . . . . . . . . . . . . Retrieved Components 23 | . 10 . 11 . . . . . . 2 . . . . . . . . . . . Parts Scanalyzed 2 | . . . 2 . . . . . . . . . . . . . . . . . . Part Schematics Acquired 1 | . . . 1 . . . . . . . . . . . . . . . . . . Parts Damaged . | . . . . . . . . . . . . . . . . . . . . . . Bothacking | -11 -10 -10 -9 -9 -9 -8 -8 -7 -7 -6 -6 -6 -6 -6 -6 -5 -5 -4 -4 -4 -3 ------------ Run | Scr Mat Min Mat Min Exi Min Mat Fac DSF Fac Was Fac Low Low Dat Pro Fac Fac Arm Lab Res Used RIF Installer . | . . . . . . . . . . . . . . . . . . . . . . Robots Hacked . | . . . . . . . . . . . . . . . . . . . . . . Non-combat . | . . . . . . . . . . . . . . . . . . . . . . Combat . | . . . . . . . . . . . . . . . . . . . . . . Robot Hacks Applied . | . . . . . . . . . . . . . . . . . . . . . . Relay Couplers Released . | . . . . . . . . . . . . . . . . . . . . . . Fabnet Peak Effective % . | . . . . . . . . . . . . . . . . . . . . . . Robots Rewired . | . . . . . . . . . . . . . . . . . . . . . . Allies Hacked . | . . . . . . . . . . . . . . . . . . . . . . Hacks Repelled . | . . . . . . . . . . . . . . . . . . . . . . Allies | -11 -10 -10 -9 -9 -9 -8 -8 -7 -7 -6 -6 -6 -6 -6 -6 -5 -5 -4 -4 -4 -3 -------- Run | Scr Mat Min Mat Min Exi Min Mat Fac DSF Fac Was Fac Low Low Dat Pro Fac Fac Arm Lab Res Total Allies 6 | . . 5 . . . . . . . . 1 . . . . . . . . . . Largest Group 3 | . . 3 3 . . . . . . . 1 . . . . . . . . . . Highest-Rated Group 78 | . . 78 78 . . . . . . . 31 . . . . . . . . . . Highest-Rated Ally 31 | . . 31 31 . . . . . . . 31 . . . . . . . . . . Total Orders 11 | . . . . . . . . . . . . . . . . . 11 . . . . STAY 4 | . . . . . . . . . . . . . . . . . 4 . . . . ROAM 1 | . . . . . . . . . . . . . . . . . 1 . . . . FOLLOW 1 | . . . . . . . . . . . . . . . . . 1 . . . . RETURN 5 | . . . . . . . . . . . . . . . . . 5 . . . . Ally Attacks 126 | . . 20 14 . . . . . . . 15 . . . . . 77 . . . . Total Damage 2298 | . . 235 206 . . . . . . . 231 . . . . . 1626 . . . . Kills 18 | . . 2 2 . . . . . . . . . . . . . 14 . . . . Allies Corrupted . | . . . . . . . . . . . . . . . . . . . . . . Allies Melted . | . . . . . . . . . . . . . . . . . . . . . . Intel | -11 -10 -10 -9 -9 -9 -8 -8 -7 -7 -6 -6 -6 -6 -6 -6 -5 -5 -4 -4 -4 -3 ------- Run | Scr Mat Min Mat Min Exi Min Mat Fac DSF Fac Was Fac Low Low Dat Pro Fac Fac Arm Lab Res Robot Analysis Total 131 | . 1 1 1 . . . . . . . . . . . 128 . . . . . . Derelict Logs Recovered 8 | . . 2 . 2 . . . . . . . . 1 1 . 2 . . . . . Drone Launches 7 | . . . . . . . . . . . . . . . . . 7 . . . . Drone Recoveries 6 | . . . . . . . . . . . . . . . . . 6 . . . . Decoded 0b10 Intel 6 | . . . . . . . . . . . . . . . . . 6 . . . . Items 6 | . . . . . . . . . . . . . . . . . 6 . . . . Exploration | -11 -10 -10 -9 -9 -9 -8 -8 -7 -7 -6 -6 -6 -6 -6 -6 -5 -5 -4 -4 -4 -3 ------------- Run | Scr Mat Min Mat Min Exi Min Mat Fac DSF Fac Was Fac Low Low Dat Pro Fac Fac Arm Lab Res Turns Passed 10878 | 90 1575 1013 1599 1341 663 760 415 575 168 191 75 407 99 72 34 209 637 213 142 295 305 Spaces Moved 8913 | 51 756 560 796 779 412 410 205 834 90 385 192 411 318 204 97 528 471 421 285 155 553 Core 19 | 6 . . . . . . . . . . . . . . . . . . . . 13 Treads 3963 | 45 756 560 796 779 412 410 205 . . . . . . . . . . . . . . Legs . | . . . . . . . . . . . . . . . . . . . . . . Wheels . | . . . . . . . . . . . . . . . . . . . . . . Hover . | . . . . . . . . . . . . . . . . . . . . . . Flight 4931 | . . . . . . . . 834 90 385 192 411 318 204 97 528 471 421 285 155 540 Fastest Speed 11 | 50 160 160 160 160 160 160 145 31 37 34 34 31 31 31 31 31 25 20 11 32 32 Average Speed 88 | 149 160 160 160 160 160 160 154 31 37 34 34 31 31 31 31 31 31 21 22 35 38 Slowest Speed 240 | 160 160 160 240 160 160 160 160 104 37 34 34 103 31 31 31 31 106 104 32 40 200 Overloaded Moves 58 | . . . . . . . . . . . . . . . . . . . 58 . . Propulsion Burnouts . | . . . . . . . . . . . . . . . . . . . . . . Robots Hopped 21 | . . . . . . . . 1 . . . . . . 3 1 7 7 1 . 1 Cave-ins Triggered . | . . . . . . . . . . . . . . . . . . . . . . Exploration Rate (%) 52 | 5 97 99 82 99 64 58 16 17 85 11 77 9 63 43 77 62 19 15 33 96 24 Regions Visited 21 Branch Regions 10 Pre-discovered Areas 28 | . . 1 . . 1 . . . . . . . . . 25 1 . . . . . Known Exits Taken 6 | . . . . . . . 1 1 . . . . . . . . 1 1 1 1 . Unknown Exits Taken 12 | 1 1 1 1 1 1 1 . . . . . 1 1 1 1 1 . . . . . Scrap Searched 6 | . . 1 . 1 . . . . . . . . 1 . . 3 . . . . . Spaces Dug 128 | . . . . 13 . . . 16 5 7 . 4 . 3 . 14 14 23 11 . 18 Terrain Destroyed 299 | . . 17 21 13 . . . 16 5 7 . 4 . 3 . 14 86 67 28 . 18 Melee 115 | . . . . . . . . 16 5 7 . 4 . 3 . 14 14 23 11 . 18 Projectile . | . . . . . . . . . . . . . . . . . . . . . . AOE 184 | . . 17 21 13 . . . . . . . . . . . . 72 44 17 . . Terrain Rammed . | . . . . . . . . . . . . . . . . . . . . . . Walls Destroyed . | . . . . . . . . . . . . . . . . . . . . . . Machines Disabled . | . . . . . . . . . . . . . . . . . . . . . . Actions | -11 -10 -10 -9 -9 -9 -8 -8 -7 -7 -6 -6 -6 -6 -6 -6 -5 -5 -4 -4 -4 -3 --------- Run | Scr Mat Min Mat Min Exi Min Mat Fac DSF Fac Was Fac Low Low Dat Pro Fac Fac Arm Lab Res Total 11211 | 63 996 628 1010 826 417 502 277 1126 210 418 201 662 317 206 95 546 925 491 333 358 604 Wait 1505 | . 111 34 53 10 . 76 26 228 99 . . 222 . . . 3 425 36 4 170 8 Move 8851 | 50 755 559 795 778 411 409 204 831 89 385 191 410 317 203 90 525 456 406 282 154 551 Hop 21 | . . . . . . . . 1 . . . . . . 3 1 7 7 1 . 1 Pick Up 95 | 7 26 1 20 . 1 2 6 7 4 2 1 4 . . . 1 2 1 5 5 . Fast Attach 59 | 5 6 . 11 1 1 . 1 6 . 4 4 3 . . . 1 1 4 5 3 3 Attach 55 | 1 5 1 4 . 1 1 2 12 . 5 . 2 . . 1 1 7 5 4 3 . Detach 20 | . . . 1 . 1 . . 3 . 4 . 1 . . . . 5 3 1 . 1 Swap 32 | . 1 2 13 3 . . 7 2 . 2 . 1 . . . . . . . . 1 Drop 122 | . 18 . 34 1 2 2 12 19 . 1 5 5 . . . . 2 2 13 5 1 Fire 239 | . 69 29 77 28 . 7 19 . . . . . . . . . 6 3 1 . . Melee 166 | . . . . . . . . 17 8 15 . 14 . 3 1 14 14 24 17 18 21 Ram 17 | . . . . . . . . . . . . . . . . . . . . . 17 Kick . | . . . . . . . . . . . . . . . . . . . . . . Crush 19 | . 5 2 2 5 . 5 . . . . . . . . . . . . . . . Escape Stasis 10 | . . . . . . . . . 10 . . . . . . . . . . . . Rewire . | . . . . . . . . . . . . . . . . . . . . . . Trap . | . . . . . . . . . . . . . . . . . . . . . . Miscellaneous . | . . . . . . . . . . . . . . . . . . . . . . Route ------- -11/Scrapyard -10/Materials (discovered 5 exits: *Mat x3 / *Min x2) -10/Mines (discovered 2 exits: *Mat x2) -9/Materials (discovered 6 exits: [*Mat x3] / *Min / *Sto x2) -9/Mines (discovered 4 exits: [*Mat x2] / *Exi / [*Zio]) -9/Exiles -8/Mines -8/Materials (discovered 2 exits: *Fac x2) -7/Factory (discovered 2 exits: *Fac / DSF) -7/DSF -6/Factory -6/Waste -6/Factory -6/Lower Caves -6/Lower Caves (discovered 2 exits: *Fac / *Dat) -6/Data Miner -5/Proximity Caves -5/Factory (discovered 4 exits: *Fac x4) -4/Factory (discovered 3 exits: Upp x2 / *Arm) -4/Armory -4/Lab -3/Research History --------- Turn | Location | Event 10 | -11/Scrapyard | Discovered new exit (range 15) 91 | -11/Scrapyard | Entered Materials 91 | -10/Materials | Discovered new exit (range 15) 315 | -10/Materials | Build established: Mutant 412 | -10/Materials | Central database locked down 432 | -10/Materials | Discovered new exit (range 7) 957 | -10/Materials | Discovered new exit (range 13) 1001 | -10/Materials | Repaired Lgt. Treads 1029 | -10/Materials | Repaired Lgt. Treads 1313 | -10/Materials | Discovered new exit (range 13) 1548 | -10/Materials | Discovered new exit (range 7) 1666 | -10/Materials | Entered Mines 1720 | -10/Mines | Discovered new exit (range 8) 1823 | -10/Mines | Core integrity fell below 50% 1928 | -10/Mines | Core integrity fell below 20% 2325 | -10/Mines | Discovered new exit (range 9) 2333 | -10/Mines | Learned location of Storage (-9) 2418 | -10/Mines | Assisted by bots powering up and referring to "LRC-V3" 2515 | -10/Mines | Escorted by a lone wolf Derelict 2610 | -10/Mines | Received a Mining Laser from a helpful Derelict 2679 | -10/Mines | Entered Materials 2679 | -9/Materials | Accompanied by 3 allies 2679 | -9/Materials | Evolved 2 slots: Propulsion x1, Utility x1 2680 | -9/Materials | Identified exit to Storage 3075 | -9/Materials | Discovered new exit (range 10) 3594 | -9/Materials | Discovered exit to Storage (range 6) 3735 | -9/Materials | Discovered new exit (range 10) 4014 | -9/Materials | Discovered new exit (range 4) 4256 | -9/Materials | Discovered new exit (range 12) 4278 | -9/Materials | Entered Mines 4403 | -9/Mines | Learned Materials garrison access intel 4412 | -9/Mines | Discovered new exit (range 15) 4478 | -9/Mines | Joined a pair of Derelicts in attacking an 0b10 outpost 4792 | -9/Mines | A Derelict revealed a hidden shortcut to a safe place 4904 | -9/Mines | Discovered new exit (range 10) 4988 | -9/Mines | Learned 8 Materials zone layouts 5114 | -9/Mines | Found a hidden stash of uninstalled traps 5613 | -9/Mines | Deemed a non-threat by the Exiles lab entrance 5613 | -9/Mines | Discovered new exit (range 5) 5619 | -9/Mines | Entered Exiles 5658 | -9/Exiles | Met 8R-AWN 5687 | -9/Exiles | Met EX-HEX 5754 | -9/Exiles | Met EX-DEC 5763 | -9/Exiles | Learned location of Zion (-7) 5794 | -9/Exiles | Met EX-BIN 5819 | -9/Exiles | Aligned with FarCom system 5821 | -9/Exiles | Given EX-Vault access code 5859 | -9/Exiles | Opened EX-Vault 5874 | -9/Exiles | Found 0b10 Alert Chip 5908 | -9/Exiles | Warned to stay clear of 0b10 Research branches 6263 | -9/Exiles | Discovered new exit (range 12) 6282 | -9/Exiles | Left Exiles lab with 0b10 Alert Chip 6282 | -9/Exiles | Entered Mines 7036 | -8/Mines | Discovered new exit (range 5) 7042 | -8/Mines | Entered Materials 7042 | -8/Materials | Evolved 2 slots: Propulsion x1, Utility x1 7043 | -8/Materials | Identified exit to Factory 7044 | -8/Materials | Loaded intel: 1 garrison access location 7438 | -8/Materials | Discovered exit to Factory (range 10) 7457 | -8/Materials | Entered Factory 7457 | -7/Factory | Evolved 2 slots: Utility x2 7650 | -7/Factory | Hacking Suite fried by hacking feedback 7772 | -7/Factory | Build established: Hacker-Sprinter 7794 | -7/Factory | Discovered new exit (range 5) 7829 | -7/Factory | Fabricated Nuclear Pulse Array? 8032 | -7/Factory | Identified exit to DSF 8032 | -7/Factory | Entered DSF 8061 | -7/DSF | Additional patrols routed to DSF 8186 | -7/DSF | Discovered new exit (range 14) 8200 | -7/DSF | Entered Factory 8200 | -6/Factory | Evolved 2 slots: Power x1, Propulsion x1 8391 | -6/Factory | Sucked down chute 8391 | -6/Factory | Entered Waste 8392 | -6/Waste | Met a frightened Derelict 8401 | -6/Waste | Spotted C-40 Crusher 8403 | -6/Waste | Spotted C-40 Crusher 8403 | -6/Waste | Spotted C-40 Crusher 8403 | -6/Waste | Spotted C-40 Crusher 8406 | -6/Waste | Spotted C-40 Crusher 8420 | -6/Waste | Spotted C-40 Crusher 8460 | -6/Waste | Discovered new exit (range 13) 8466 | -6/Waste | Entered Factory 8579 | -6/Factory | Build established: Hacker-Scout 8662 | -6/Factory | Repaired Broken Nuclear Pulse Array? 8744 | -6/Factory | Repaired Nuclear Pulse Array 8854 | -6/Factory | Repaired Centrium Medium Armor Plating 8860 | -6/Factory | Discovered new exit (range 6) 8873 | -6/Factory | Entered Lower Caves 8919 | -6/Lower Caves | Learned Factory emergency access door positions 8963 | -6/Lower Caves | Discovered new exit (range 10) 8972 | -6/Lower Caves | Entered another Lower Caves area 8974 | -6/Lower Caves | Attracted the attention of an 0b10 checkpoint 8979 | -6/Lower Caves | Discovered new exit (range 11) 9030 | -6/Lower Caves | Learned 4 Factory zone layouts 9042 | -6/Lower Caves | Discovered new exit (range 6) 9044 | -6/Lower Caves | Entered Data Miner 9044 | -6/Data Miner | Discovered new exit (range 6) 9050 | -6/Data Miner | Met Data Miner 9059 | -6/Data Miner | Learned location of Section 7 (-2) 9059 | -6/Data Miner | Acquired the access code to Warlord's prototype stash 9062 | -6/Data Miner | Received God Mode back door access code from Data Miner 9068 | -6/Data Miner | Interfaced with the Data Conduit 9078 | -6/Data Miner | Entered Proximity Caves 9105 | -5/Proximity Caves | Spotted B-75 Beast 9174 | -5/Proximity Caves | Build established: Hacker-Sprinter 9247 | -5/Proximity Caves | Attracted the attention of an 0b10 checkpoint 9286 | -5/Proximity Caves | Discovered new exit (range 4) 9287 | -5/Proximity Caves | Entered Factory 9287 | -5/Factory | Evolved 2 slots: Power x1, Propulsion x1 9290 | -5/Factory | Loaded intel: 224 machine locations 9402 | -5/Factory | Fabricated Combat Drone Bay (x1) 9488 | -5/Factory | Fabricated Exp. Cesium-ion Thruster (x1) 9642 | -5/Factory | Identified exit to Factory 9821 | -5/Factory | Fabricated Exp. Cesium-ion Thruster? 9924 | -5/Factory | Entered another Factory area 9924 | -4/Factory | Evolved 2 slots: Propulsion x2 9925 | -4/Factory | Loaded intel: 249 machine locations 10060 | -4/Factory | Identified exit to Upper Caves 10060 | -4/Factory | Identified exit to Armory 10137 | -4/Factory | Entered Armory 10138 | -4/Armory | Loaded intel: 75 machine locations 10187 | -4/Armory | Lost 3 parts (3n) 10250 | -4/Armory | Lost 3 parts (2n1u) 10272 | -4/Armory | Attacked by bots powering up and referring to "LRC-V3" 10278 | -4/Armory | Discovered new exit (range 3) 10278 | -4/Armory | Identified exit to Lab 10279 | -4/Armory | Entered Lab 10279 | -4/Lab | Discovered new exit (range 9) 10282 | -4/Lab | Identified exit to Research 10283 | -4/Lab | Hidden lab's door opened automatically 10283 | -4/Lab | Sensor layout match revealed 10284 | -4/Lab | Gained access to the hidden lab's interior 10289 | -4/Lab | Lost 4 parts (4n) 10453 | -4/Lab | Found Prototype Hackware 10453 | -4/Lab | Identified Deep Network Scanner 10467 | -4/Lab | Found Prototype Protection 10467 | -4/Lab | Identified Med. Regenerative Plating 10486 | -4/Lab | Found Prototype Energy Cannon 10486 | -4/Lab | Identified Warp Cannon 10497 | -4/Lab | Decrypted terminal 10526 | -4/Lab | Found Prototype Special Weapon 10543 | -4/Lab | Identified Gui. Remote Datajack 10544 | -4/Lab | Found Alien Artifact 10559 | -4/Lab | Found Alien Artifact 10567 | -4/Lab | Found Alien Artifact 10574 | -4/Lab | Entered Research 10574 | -3/Research | Evolved 2 slots: Power x1, Utility x1 10575 | -3/Research | Loaded intel: 115 machine locations 10584 | -3/Research | Found Exp. Signal Interpreter 10586 | -3/Research | Found Exp. Signal Interpreter 10700 | -3/Research | System Shield fried by hacking feedback 10797 | -3/Research | Found Enh. Force Lance 10857 | -3/Research | Core integrity fell below 50% 10858 | -3/Research | Released all parts (4) 10868 | -3/Research | Core integrity fell below 20% 10868 | -3/Research | System corruption reached 10% 10879 | -3/Research | Destroyed by S-43 Plague with Heavy Machine Gun Last Messages --------------- 10824_ ALERT: Rogue bot located, Programmers report to Research Zone 9A. 10835_ Acquired Lrn. Terrain Scanner. 10843_ Adv. Cloaking Device destroyed. 10850_ Nuclear Pulse Array destroyed. 10853_ S-43 Plague destroyed. 10854_ Deep Network Scanner destroyed. 10854_ Penetrated by Slug. 10858_ Exp. Signal Interpreter destroyed. 10858_ Released 0b10 Alert Chip. 10858_ Released Exp. Signal Interpreter. 10858_ Released Enh. Force Lance. 10858_ Released Lrn. Terrain Scanner. 10860_ K-01 Serf collects debris. 10863_ Slammed into S-43 Plague. 10869_ Destabilizing: System corrupted (+1). 10870_ Slammed into S-43 Plague. 10872_ System corrupted: Matter fused (-5). 10872_ Slammed into S-43 Plague. 10875_ Destabilizing: System corrupted (+1). 10876_ Slammed into S-43 Plague. Map ----- +----------------------------------------------------+ | ?????????????????????????""""??# | | ???????????????????????????????# | | ???????????????????????????????#### ##/######### | | ????????????????? ????????????????# ?# #? | | ??????????????????????????????????# ## #? | | ?????????????????????????#????????# ## #? | | ?????????????????????????????#???## ## #? | | ??????????????????????????????????# ## #? | | ???????????????????????????? ?????# ## #? | | ??T???????????????????????????????# ## #? | | ??????????????????????????????????# ## #? | | ????????????????????#?????????????# "" = #? | | ????????????????? ????????????????+ ##"########? | | ??????????????????????????????????# ####???????? | | ?????????????????????????????????## ##?????????? | | ?????????????????????????????????# #?????????? | | ?????????????? ????????????####### =! #?????????? | | ?????????????????????? ]%[ +?????????? | | ???????????????????###???######### * ! #?????????? | | ???????????????????# ! ??????????# #?????????? | | ????""?????????????# ??????????###/###?????????? | | ???"""?????????????? ! ?????#?????#!#????######?? | | ???"R???????????????? ???????????# #????! #?? | | ???"""???????????????? ??????????# #??? #?? | | ???"""?????????????????#/########### #### #?? | | ???????????????????????#s@ sppppYss + ##? | | ???????????????????????################## [ #?? | | ???????????????????????#?????????????#??? #?? | | ??????????????????????????????????????????######?? | | ?????????????????????????????????????????????????? | | ?????????????????????????????????????????????????? | | | | | | | | | | | | | | | | | | | | | | | | | | | | | | | | | | | | | | | +----------------------------------------------------+ Best States ------------- Heat Dissipation 46 Energy Generation 28 Energy Capacity 265 Matter Stores 300 Matter Capacity 300 Sight Range 16 Terrain Scan Range 24 Terrain Scan Density 10 Armor Coverage 300 Melee Speed Boost 20 Evasion (%) 75 Targeting Accuracy 8 Recoil Reduction 4 Offensive Hacking 40 Defensive Hacking 10 Authchip Count 4 Item Schematics ----------------- Hacking Suite | -9/Materials | Scanalyzed Nuclear Pulse Array | -7/Factory | Hacked Adv. Trap Extractor | -6/Factory | Hacked Combat Drone Bay | -6/Data Miner | Free Lgt. Regenerative Plating | -6/Data Miner | Free Exp. Cesium-ion Thruster | -6/Data Miner | Free Imp. Matter Compressor | -6/Data Miner | Free Mni. Smartbomb Launcher | -6/Data Miner | Free Adv. VSS Leg | -6/Data Miner | Free Imp. Cloaking Device | -6/Data Miner | Free Matter Neutralizer | -6/Data Miner | Free Lrn. Terrain Scanner | -6/Data Miner | Free Imp. Heavy Siege Treads | -6/Data Miner | Free Gamma Bomb Array | -6/Data Miner | Free Tesla Rifle | -6/Data Miner | Free Robot Schematics ------------------ Y-64 Sentinel | -6/Data Miner | Free G-50 Soldier | -6/Data Miner | Free X-62 Marksman | -6/Data Miner | Free B-48 Gladiator | -6/Data Miner | Free M-36 Artificer | -6/Data Miner | Free Fabricated ------------ Nuclear Pulse Array | x2 | -7/Factory Combat Drone Bay | x1 | -5/Factory | Authchip Exp. Cesium-ion Thruster | x1 | -5/Factory Exp. Cesium-ion Thruster | x1 | -5/Factory Alien Tech Used ----------------- None Achievements -------------- None Challenges ------------ None Game ------ Seed ChromaticFissionMembrane Manual? 0 Play Time 01:21:43 Cumulative 359.0 hours Start 2022.04.26 @ 07:53:21 End 2022.04.26 @ 09:19:26 Sessions 1 Manual Loads 0 Difficulty Rogue Special Mode None Game No. 371 Rogue 371 Adventurer 0 Explorer 0 Win Type - Total 19 Types 11/2/3/2/0/0/0/1/0 Lore% 91 Gallery% 88 Achievement% 74 Wizard Run 0 Options --------- ASCII 0 Keyboard 0 Movement Arrows Keybinds 0 Fullscreen 1 Font 18/SmallcapsGlow Map View 76x50 Tactical HUD 1 Map Filters NONE Filters NONE Steam 1 RUN: c28acb19-fcd9-4f2b-a98b-b107daeea750